Cogmind - Beta 12 *** ADVENTURER MODE // 2023.05.19 @ 20:29:59 Player: FrigidRock Result: Destroyed by G-67 Veteran with Field Laser Performance ------------- Evolutions (6) 3000 Regions Visited (16) 3200 Robots Destroyed (189) 945 Value Destroyed (7209) 7209 Prototype IDs (44) 880 Alien Tech Used (1) 200 Bonus (2671) 2671 TOTAL SCORE: 18105 Bonus ------- High Alert Combat Kills 1511 Follower Combat Kills 651 Met Data Miner 300 Met Zhirov 300 Friendly Fire -91 Cogmind --------- Core Integrity 0/1150 Matter 275/300 Energy 99/100 System Corruption 16% Temperature Cool (21) Movement Core (50) Location -4/Factory Parts ------- > --- POWER (2) -------- (None) > --- PROPULSION (5) --- (None) > --- UTILITY (10) ----- (None) > --- WEAPON (2) ------- (None) > --- INVENTORY (5) ---- Medium Storage Unit Compact Matter Pod (150) Improved Sensor Array Improved Weapon Shielding Plasma Rifle Peak State ------------ > --- POWER ------------ Fission Core Fusion Reactor > --- PROPULSION ------- Flexi-carbon Leg Flexi-carbon Leg Advanced Myomer Leg Advanced Myomer Leg Advanced Myomer Leg > --- UTILITY ---------- Improved Cryofiber Web Advanced Heat Sink Advanced Heat Sink Large Storage Unit Advanced Visual Processing Unit Advanced Sensor Array Advanced Signal Interpreter Cloaking Device Experimental Thermal Shield Advanced Hacking Suite > --- WEAPON ----------- Matter Neutralizer Matter Neutralizer > --- INVENTORY -------- Improved Deuterium Engine Neutrino Core Improved Heat Sink Medium Storage Unit Energy Well Improved Sensor Array Core Shielding Enhanced Gauss Cannon Enhanced Gauss Cannon Heavy Shock Bomb Launcher [Rating: 113] Favorites ----------- Power Light Angular Momentum Engine Engine Light Angular Momentum Engine Power Core Light Nuclear Core Reactor Fusion Reactor Propulsion Improved Carbon-fiber Leg Treads Improved Medium Treads Leg Improved Carbon-fiber Leg Wheel Compact Wheel Hover Unit Antigrav System Flight Unit VTOL Module Utility Hacking Suite Device Advanced Heat Sink Storage Large Storage Unit Processor Advanced Visual Processing Unit Hackware Hacking Suite Protection Improved Utility Shielding Weapon Constructs Energy Gun Constructs Energy Cannon Disruptor Cannon Ballistic Gun Gauss Rifle Ballistic Cannon Constructs Launcher Heavy Shock Bomb Launcher Build | -11 -10 -9 -8 -8 -8 -6 -6 -6 -6 -5 -5 -5 -5 -5 -4 -4 ------- Run | Jun Mat Mat Mat Sto Rec Fac Low Low Dat Pro Fac Upp Upp Zhi Pro Fac Slots Evolved 12 | . . 2 2 . . 4 . . . . 2 . . . . 2 Power 1 | . . . . . . 1 . . . . . . . . . . Propulsion 3 | . . 1 . . . 1 . . . . 1 . . . . . Utility 8 | . . 1 2 . . 2 . . . . 1 . . . . 2 Weapon . | . . . . . . . . . . . . . . . . . Parts Attached 224 | 7 1 5 32 10 3 24 . 19 . 12 30 1 1 10 8 61 Power 30 | 1 . . 2 4 . 3 . 3 . . 2 . 1 1 . 13 Engine 13 | 1 . . 1 4 . 1 . 2 . . 1 . 1 . . 2 Core 10 | . . . 1 . . 2 . 1 . . 1 . . . . 5 Reactor 7 | . . . . . . . . . . . . . . 1 . 6 Propulsion 69 | 2 . 3 9 . 2 9 . 3 . 5 11 . . 5 2 18 Treads 13 | . . 3 2 . . 5 . 2 . 1 . . . . . . Leg 35 | . . . 7 . 2 4 . 1 . . 4 . . 3 2 12 Wheel 4 | 2 . . . . . . . . . . 1 . . . . 1 Hover 13 | . . . . . . . . . . 4 6 . . 2 . 1 Flight 4 | . . . . . . . . . . . . . . . . 4 Utility 65 | 1 1 . 10 1 1 10 . 6 . 3 12 . . 4 2 14 Device 27 | . 1 . 2 . 1 4 . 2 . . 5 . . 2 1 9 Storage 10 | 1 . . 2 . . . . 1 . 2 2 . . . . 2 Processor 3 | . . . . . . 3 . . . . . . . . . . Hackware 6 | . . . 1 . . 1 . . . . 3 . . 1 . . Protection 19 | . . . 5 1 . 2 . 3 . 1 2 . . 1 1 3 Artifact . | . . . . . . . . . . . . . . . . . Weapon 60 | 3 . 2 11 5 . 2 . 7 . 4 5 1 . . 4 16 Energy Gun 22 | 2 . . 6 2 . . . 3 . 4 3 . . . . 2 Energy Cannon 12 | . . 2 1 2 . . . 2 . . . . . . 1 4 Ballistic Gun 10 | 1 . . 3 1 . 2 . 2 . . . . . . . 1 Ballistic Cannon 12 | . . . . . . . . . . . 2 1 . . 2 7 Launcher 4 | . . . 1 . . . . . . . . . . . 1 2 Special Weapon . | . . . . . . . . . . . . . . . . . Impact Weapon . | . . . . . . . . . . . . . . . . . Slashing Weapon . | . . . . . . . . . . . . . . . . . Piercing Weapon . | . . . . . . . . . . . . . . . . . Special Melee Weapon . | . . . . . . . . . . . . . . . . . Unidentified Prototypes 13 | . . . 3 2 . . . . . . 2 . . 5 . 1 Corrupted Parts 5 | . . . 1 . . . . 1 . . . . . . 2 1 System Corruption 28 | . . . 4 . . . . 4 . . . . . . 16 4 Parts Lost 80 | . . 2 5 1 . 5 . 12 . 4 4 . 4 . 3 40 Power 14 | . . . . . . 1 . 4 . . . . 1 . . 8 Propulsion 26 | . . . 2 . . 1 . 5 . 3 1 . 1 . 1 12 Utility 23 | . . 1 . 1 . 3 . . . 1 2 . 2 . 1 12 Weapon 17 | . . 1 3 . . . . 3 . . 1 . . . 1 8 Highest Loss Streak 22 | . . 2 3 1 . 2 . 5 . 3 2 . 4 . 3 22 To Critical Strikes . | . . . . . . . . . . . . . . . . . Average Slot Usage (%) 82 | . 98 80 87 99 83 74 97 85 60 67 88 93 91 73 94 77 Engine 4 | . 14 11 2 6 9 4 . 3 6 . 4 5 5 7 5 2 Core 2 | . . . 6 2 . 3 13 3 . . 3 5 4 . . 1 Treads 4 | . . 28 6 . . 11 . 2 13 6 . . . . . . Leg 12 | . . . 19 27 24 . 26 16 . . 14 . . 10 21 19 Hover 3 | . . . . . . . . . . 18 6 29 28 12 6 . Device 11 | . 12 7 4 9 17 15 6 6 6 . 7 17 16 14 16 17 Storage 7 | . 14 11 9 9 9 6 6 6 6 12 9 5 5 5 5 4 Processor 7 | . . . . . . 2 13 13 13 13 11 11 11 11 11 8 Hackware 7 | . . . 5 9 9 8 13 12 6 6 8 5 4 2 5 3 Protection 5 | . . . 14 18 . 4 6 6 6 6 6 5 4 2 4 3 Energy Gun 4 | . 28 14 7 11 8 7 . 1 . 1 6 . . . . . Energy Cannon 1 | . . 6 3 . . . . 5 . . . . . . . 2 Ballistic Gun 2 | . . . 5 5 5 2 10 4 . . . . . . . . Ballistic Cannon 1 | . . . . . . 2 . . . . 3 4 4 . 3 3 Naked Turns 42 | . . . . . . . . . . . . . . . . 42 Heaviest Build 79 | 13 14 18 43 44 43 50 42 60 32 43 66 53 53 53 71 79 Greatest Support 140 | 26 26 66 66 54 54 106 63 63 53 53 91 55 55 90 130 140 Greatest Overweight (x) 4 | 4 . . . . 2 2 . 1 . 2 2 . . 1 . 4 Average Overweight (x) . | . . . . . . . . . . . . . . . . . Largest Inventory Capacity 15 | 8 8 8 15 15 15 15 15 15 15 15 15 15 15 15 15 15 Average Capacity 13 | 7 8 8 12 15 15 15 15 15 15 10 14 15 15 15 15 13 Most Carried 15 | . . 3 13 13 15 15 10 15 14 14 14 14 14 15 15 14 Average Carried 10 | . . 1 7 11 13 11 10 10 14 10 10 13 13 14 12 9 Final Capacity 15 | 8 8 8 15 15 15 15 15 15 15 10 15 15 15 15 15 5 Final Carried 15 | . . 3 13 10 15 10 10 14 14 10 14 13 14 15 10 5 Scrap Engine Consumption 100 | . . . . . 36 64 . . . . . . . . . . Constructs Created 6 | . . . . . 2 4 . . . . . . . . . . Constructs Modified 22 | . . . . . 2 20 . . . . . . . . . . Class Distribution -------------------- 35% | Hacker-Mutant 12% | Hacker-Construct 12% | Scavenger-Skirmisher 11% | Hacker-Skirmisher 8% | Scavenger-Mutant 7% | Mutant 6% | Commander-Mutant 3% | Hacker-Scout Dominant Class ---------------- Mutant | -10/Materials Mutant | -9/Materials Hacker-Mutant | -8/Materials Hacker-Mutant | -8/Storage Commander-Mutant | -8/Recycling Hacker-Construct | -6/Factory Scavenger-Skirmisher | -6/Lower Caves Hacker-Skirmisher | -6/Lower Caves Hacker-Mutant | -6/Data Miner Hacker-Mutant | -5/Proximity Caves Scavenger-Skirmisher | -5/Factory Hacker-Scout | -5/Upper Caves Hacker-Scout | -5/Upper Caves Hacker-Mutant | -5/Zhirov Hacker-Mutant | -4/Proximity Caves Scavenger-Mutant | -4/Factory Resources | -11 -10 -9 -8 -8 -8 -6 -6 -6 -6 -5 -5 -5 -5 -5 -4 -4 ----------- Run | Jun Mat Mat Mat Sto Rec Fac Low Low Dat Pro Fac Upp Upp Zhi Pro Fac Matter Collected 5113 | 138 142 50 401 60 177 1275 178 457 . 151 375 36 . . 533 1140 Remotely . | . . . . . . . . . . . . . . . . . Salvage Created 8238 | . 121 396 892 236 . 2191 153 725 . 74 702 44 . . 420 2284 Parts 357 | . 11 9 55 14 . 100 13 41 . . 26 2 . . 18 68 Haulers Intercepted 5 | . 1 . 3 . . 1 . . . . . . . . . . Recyclers Shooed 4 | . . . . . . 3 . . . . . . . . . 1 Parts Field Recycled . | . . . . . . . . . . . . . . . . . Retrieved Matter . | . . . . . . . . . . . . . . . . . Parts Self-Destructed 66 | . . . . . . . 13 31 . 10 . 5 . . 7 . Prevented 32 | . . . . . . . . 18 . . . . . . 14 . Kills | -11 -10 -9 -8 -8 -8 -6 -6 -6 -6 -5 -5 -5 -5 -5 -4 -4 ------- Run | Jun Mat Mat Mat Sto Rec Fac Low Low Dat Pro Fac Upp Upp Zhi Pro Fac Combat Hostiles Destroyed 150 | . 3 8 16 4 . 31 6 14 . 1 11 1 . . 9 46 Guns 69 | . 3 5 8 3 . 26 6 7 . 1 7 . . . . 3 Cannons 51 | . . 2 5 . . 4 . 6 . . 4 1 . . 1 28 AOE 17 | . . . 2 . . 1 . 1 . . . . . . 6 7 Classes Destroyed 15 | . 3 2 4 . . 2 . 1 . . 1 . . . 1 1 Worker 11 | . . . 1 . . 4 . . . . . . . . . 6 Builder 11 | . . . 1 . . 5 . . . . . . . . . 5 Hauler 5 | . 1 . 3 . . 1 . . . . . . . . . . Recycler 7 | . . . . . . 5 . . . . 1 . . . . 1 Carrier 1 | . . . . . . . . . . . . . . . . 1 Mechanic 1 | . . . . . . . . . . . 1 . . . . . Drone 1 | . . . . . . . . . . . . . . . 1 . Watcher 3 | . 1 . . . . 1 . . . . 1 . . . . . Swarmer 56 | . 3 . 4 . . 8 6 7 . . 4 . . . 5 19 Grunt 36 | . . 6 3 1 . 10 . 3 . . 2 1 . . 3 7 Brawler 8 | . . . 1 . . 2 . 1 . 1 . . . . . 3 Duelist 1 | . . . . . . . . 1 . . . . . . . . Sentry 16 | . . 2 5 3 . 1 . 2 . . 1 . . . . 2 Hunter 17 | . . . 3 . . 3 . . . . 2 . . . . 9 Programmer 15 | . . . . . . 7 . . . . 2 . . . . 6 Decomposer 2 | . . . . . . . . 2 . . . . . . . . Best Kill Streak 15 | . 4 3 4 4 . 13 3 3 . 1 4 1 . . 5 15 Combat Bots Only 12 | . 3 3 4 4 . 7 3 3 . 1 4 1 . . 5 12 Max Kills in Single Turn 4 | . 1 1 2 1 . 4 2 1 . 1 1 1 . . 3 4 Gunslinging 1 | . . . . . . . 1 . . . . . . . . . Exploded 4 | . . . 2 . . 1 . 1 . . . . . . 3 4 Melee . | . . . . . . . . . . . . . . . . . Uniques/NPCs Destroyed . | . . . . . . . . . . . . . . . . . Combat | -11 -10 -9 -8 -8 -8 -6 -6 -6 -6 -5 -5 -5 -5 -5 -4 -4 -------- Run | Jun Mat Mat Mat Sto Rec Fac Low Low Dat Pro Fac Upp Upp Zhi Pro Fac Damage Taken 13428 | . 48 533 1028 196 . 2116 69 1640 . 219 748 13 381 . 823 5614 Core 2418 | . 4 41 127 47 . 451 13 240 . 26 97 . 119 . 101 1152 Absorbed by Shields . | . . . . . . . . . . . . . . . . . Redirected to Shielding 294 | . . . 14 . . 48 . 30 . 6 9 . . . 168 19 Regen/Repaired (Parts) 429 | . . . . . 5 424 . . . . . . . . . . Core Remaining (%) 72 | 100 98 89 . . 68 . . . . 14 . . . . 68 . Volleys Fired 503 | . 11 31 37 15 . 115 13 56 . 3 38 8 12 . 36 128 Largest 2 | . 2 2 2 2 . 2 2 2 . 2 2 1 1 . 2 2 Hottest 210 | . 90 112 121 106 . 85 56 165 . 165 165 57 57 . 138 210 Shots Fired 902 | . 22 53 70 30 2 229 25 97 . 6 74 8 12 . 41 233 Gun 506 | . 22 45 45 29 2 184 25 62 . 6 58 . . . . 28 Cannon 383 | . . 8 25 1 . 45 . 35 . . 16 8 12 . 34 199 Launcher 13 | . . . . . . . . . . . . . . . 7 6 Special . | . . . . . . . . . . . . . . . . . Kinetic 373 | . . . 24 13 . 129 25 58 . . 16 8 12 . 20 68 Thermal 401 | . 22 45 8 . . 100 . 4 . 6 58 . . . . 158 Explosive . | . . . . . . . . . . . . . . . . . Electromagnetic 128 | . . 8 38 17 2 . . 35 . . . . . . 21 7 Robot Hit Streak 44 | . 11 25 31 19 17 22 15 25 . 37 44 3 . . 6 18 Robot Miss Streak 9 | . 1 2 2 1 1 2 1 3 . . 4 . . . 6 9 Penetration Max 2 | . . . 1 . . 1 . . . . . . . . . 2 Secondary Targets 6 | . 1 . 1 . . 2 1 1 . . . . . . . . Max Gunslinging Chain 1 | . 1 . 1 . . 1 1 1 . . . . . . . . Shots Hit Robots 655 | . 18 43 57 24 2 174 17 74 . 6 55 2 . . 18 165 Core Hits 316 | . 6 15 32 7 . 79 6 31 . 4 26 1 . . 17 92 Critical Kills 11 | . . . 1 . . . . . . . . . . . . 10 Critical Parts Destroyed 1 | . . . . . . . . . . . . . . . . 1 Critical Strikes 38 | . . 3 1 . . 5 . . . . 5 . . . 2 22 Burn 13 | . . 3 . . . 5 . . . . 4 . . . . 1 Meltdown 8 | . . . . . . . . . . . . . . . . 8 Destroy 4 | . . . 1 . . . . . . . . . . . . 3 Blast 13 | . . . . . . . . . . . 1 . . . 2 10 Melee Attacks . | . . . . . . . . . . . . . . . . . Impact . | . . . . . . . . . . . . . . . . . Slashing . | . . . . . . . . . . . . . . . . . Piercing . | . . . . . . . . . . . . . . . . . Sneak Attacks . | . . . . . . . . . . . . . . . . . Combat Hostiles . | . . . . . . . . . . . . . . . . . Follow-up Attacks . | . . . . . . . . . . . . . . . . . Damage Inflicted 18564 | . 238 583 1174 517 41 5050 248 1411 . 140 1343 34 . . 838 6947 Guns 8452 | . 238 441 590 517 41 3566 248 924 . 140 1091 . . . . 656 Cannons 7973 | . . 142 397 . . 689 . 441 . . 252 34 . . 337 5681 Explosions 2110 | . . . 187 . . 791 . 46 . . . . . . 486 600 Melee . | . . . . . . . . . . . . . . . . . Ramming 29 | . . . . . . 4 . . . . . . . . 15 10 Kinetic 6241 | . . . 327 192 . 2218 248 805 . . 252 34 . . 166 1999 Thermal 8866 | . 238 441 295 . . 2181 . 165 . 140 1091 . . . . 4315 Explosive 647 | . . . . . . 647 . . . . . . . . . . Electromagnetic 2781 | . . 142 552 325 41 . . 441 . . . . . . 657 623 Impact . | . . . . . . . . . . . . . . . . . Slashing . | . . . . . . . . . . . . . . . . . Piercing . | . . . . . . . . . . . . . . . . . Highest Corruption 25 | . . . 4 5 5 4 4 11 11 11 2 2 9 9 25 16 Average Corruption 5 | . . . 4 4 5 1 4 4 11 11 1 2 2 9 15 7 Corruption Purged . | . . . . . . . . . . . . . . . . . Corruption Blocked . | . . . . . . . . . . . . . . . . . Effects 197 | . . . 16 4 15 17 9 32 4 17 9 . 2 5 24 43 Message Errors 57 | . . . 6 1 4 7 2 9 2 3 4 . . . 7 12 Matter Fused 44 | . . . 5 2 4 4 3 7 2 4 1 . 1 2 2 7 Heat Flow Errors 19 | . . . 2 . . . . 4 . 3 1 . 1 1 4 3 Energy Discharges 24 | . . . 1 . 3 3 1 3 . 4 1 . . 1 3 4 Parts Rejected 4 | . . . . . 1 . 1 1 . 1 . . . . . . Parts Fused 3 | . . . . . 1 . . 1 . . . . . . 1 . Data Loss (minor) 17 | . . . 1 . . . . 3 . 2 2 . . 1 4 4 Data Loss (major) 5 | . . . . . . 1 2 . . . . . . . 1 1 Misfires 8 | . . . 1 . 2 1 . 2 . . . . . . 1 1 Alerts 5 | . . . . 1 . 1 . 2 . . . . . . . 1 Misdirections 5 | . . . . . . . . . . . . . . . . 5 Weapon Failures 6 | . . . . . . . . . . . . . . . 1 5 Overload Shots . | . . . . . . . . . . . . . . . . . Overflow Damage 330 | . . . 8 . . 148 . . . . 7 . . . 10 157 Projectiles 179 | . . . . . . 15 . . . . 7 . . . . 157 Explosions 151 | . . . 8 . . 133 . . . . . . . . 10 . Melee . | . . . . . . . . . . . . . . . . . Knockbacks 35 | . . . . . . 16 . . . . . . . . 2 17 Impact 1 | . . . . . . . . . . . . . . . . 1 Kinetic 30 | . . . . . . 14 . . . . . . . . 2 14 Secondary 4 | . . . . . . 2 . . . . . . . . . 2 Self-Inflicted Damage 250 | . . . 63 . . 2 . 35 . . . . . . 55 95 Shots 13 | . . . 3 . . . . 1 . . . . . . 4 5 Rammed 1 | . . . . . . 1 . . . . . . . . . . Targets Rammed 6 | . . . . . . 1 . . . . . . . . 2 3 Kicked 5 | . . . . . . . . . . . . . . . 2 3 Crushed . | . . . . . . . . . . . . . . . . . Highest Temperature 525 | . 160 281 369 292 10 199 . 324 . 264 525 9 230 110 217 400 Average Temperature 100 | . 83 113 98 133 6 78 . 97 . 109 167 2 35 59 73 100 Received Heat Transfer 2539 | . . 306 297 108 . 381 . 552 . 21 90 . 27 . 222 535 Effects 12 | . . 1 3 1 . . . 1 . . 6 . . . . . Shutdowns 5 | . . . 1 . . . . 1 . . 3 . . . . . Energy Bleed 3 | . . 1 1 1 . . . . . . . . . . . . Matter Decay 1 | . . . . . . . . . . . 1 . . . . . Short Circuit 1 | . . . 1 . . . . . . . . . . . . . Damage (minor) 2 | . . . . . . . . . . . 2 . . . . . Siege Activations . | . . . . . . . . . . . . . . . . . Robots Corrupted 5 | . . . 1 1 . . . . . . . . . . 2 1 Combat Hostiles 5 | . . . 1 1 . . . . . . . . . . 2 1 Parts Fried 15 | . . 2 3 4 . . . 2 . . . . . . 3 1 Impact Corruptions . | . . . . . . . . . . . . . . . . . Robots Melted 10 | . . 1 . . . . . . . . . . . . . 9 Combat Hostiles 8 | . . 1 . . . . . . . . . . . . . 7 Parts Melted 35 | . . 5 . . . 8 . . . 1 8 . . . . 13 Heat Transferred 13640 | . 620 1423 459 . . 3393 . 263 . 350 2652 . . . . 4480 Parts Sabotaged 3 | . . . . . . . . . . . . . . . . 3 Parts Stolen . | . . . . . . . . . . . . . . . . . Parts Stripped . | . . . . . . . . . . . . . . . . . Power Chain Reactions 4 | . . . 3 . . . . 1 . . . . . . . . Missiles Intercepted . | . . . . . . . . . . . . . . . . . Alert | -11 -10 -9 -8 -8 -8 -6 -6 -6 -6 -5 -5 -5 -5 -5 -4 -4 ------- Run | Jun Mat Mat Mat Sto Rec Fac Low Low Dat Pro Fac Upp Upp Zhi Pro Fac Peak Influence 1382 | . 123 334 336 302 123 386 . . . . 344 . . . . 1382 Initial 968 | . . 43 120 115 62 50 . . . . 187 . . . . 968 Average 328 | . 69 157 200 161 83 90 . . . . 204 . . . . 1075 Maximum Alert Level 4 | . . 1 1 1 . 1 . . . . 1 . . . . 4 Low Security (%) 59 | 100 100 63 52 82 100 91 . . . . 42 . . . . . Level 1 19 | . . 36 47 17 . 8 . . . . 57 . . . . . Level 2 . | . . . . . . . . . . . . . . . . . Level 3 11 | . . . . . . . . . . . . . . . . 56 Level 4 8 | . . . . . . . . . . . . . . . . 43 Level 5 . | . . . . . . . . . . . . . . . . . High Security . | . . . . . . . . . . . . . . . . . Max Security . | . . . . . . . . . . . . . . . . . Squads Dispatched 30 | . . 2 1 1 . 10 . 1 . . 2 . . . 1 12 Investigation 3 | . . 1 . . . 1 . . . . . . . . . 1 Extermination 9 | . . . . . . 5 . . . . 1 . . . . 3 Reinforcement 12 | . . 1 1 1 . 4 . . . . . . . . . 5 Assault 5 | . . . . . . . . 1 . . . . . . 1 3 Garrison 1 | . . . . . . . . . . . 1 . . . . . Intercept . | . . . . . . . . . . . . . . . . . Searches Triggered 2 | . . . . . . . . . . . . . . . . 2 Data Miner Redirects 1 | . . . . . . . . . . . . . . . . 1 Construction Impeded 6 | . . . . . . 2 . . . . . . . . . 4 Haulers Reinforced . | . . . . . . . . . . . . . . . . . Active Scanning Responses . | . . . . . . . . . . . . . . . . . Cargo Convoy Interrupts . | . . . . . . . . . . . . . . . . . Stealth | -11 -10 -9 -8 -8 -8 -6 -6 -6 -6 -5 -5 -5 -5 -5 -4 -4 --------- Run | Jun Mat Mat Mat Sto Rec Fac Low Low Dat Pro Fac Upp Upp Zhi Pro Fac Distress Signals 11 | . 1 1 5 . . . . . . . . . . . 1 3 Communications Jammed . | . . . . . . . . . . . . . . . . . Distress Signals . | . . . . . . . . . . . . . . . . . Times Spotted 259 | . 4 14 27 7 1 41 7 23 . 10 13 1 7 . 22 82 Peak Tracking Total 13 | . 4 5 6 4 1 5 3 9 . 4 3 2 4 . 5 13 Tactical Retreats 21 | . . 1 1 2 . . . 5 . 1 . 1 1 . 3 6 Traps | -11 -10 -9 -8 -8 -8 -6 -6 -6 -6 -5 -5 -5 -5 -5 -4 -4 ------- Run | Jun Mat Mat Mat Sto Rec Fac Low Low Dat Pro Fac Upp Upp Zhi Pro Fac Traps Triggered 6 | . . . . 1 . 2 . . . . . . . . . 3 Indirectly . | . . . . . . . . . . . . . . . . . Trap Hack Attempts . | . . . . . . . . . . . . . . . . . Triggered . | . . . . . . . . . . . . . . . . . Disarmed 6 | . . . . . . . . . . . 6 . . . . . Reprogrammed . | . . . . . . . . . . . . . . . . . Reused . | . . . . . . . . . . . . . . . . . Traps Extracted . | . . . . . . . . . . . . . . . . . Installed . | . . . . . . . . . . . . . . . . . Triggered 2 | . . . . . . . . 2 . . . . . . . . Machines | -11 -10 -9 -8 -8 -8 -6 -6 -6 -6 -5 -5 -5 -5 -5 -4 -4 ---------- Run | Jun Mat Mat Mat Sto Rec Fac Low Low Dat Pro Fac Upp Upp Zhi Pro Fac Machines Disabled 17 | . . . 1 1 . 8 . . . . 2 . . . . 5 Max in Single Turn 5 | . . . 1 1 . 5 . . . . 2 . . . . 1 Machines Repaired . | . . . . . . . . . . . . . . . . . Machines Sabotaged . | . . . . . . . . . . . . . . . . . Overloaded Fab Kills . | . . . . . . . . . . . . . . . . . Hacking | -11 -10 -9 -8 -8 -8 -6 -6 -6 -6 -5 -5 -5 -5 -5 -4 -4 --------- Run | Jun Mat Mat Mat Sto Rec Fac Low Low Dat Pro Fac Upp Upp Zhi Pro Fac Machines Accessed 42 | . 3 4 2 3 6 6 . 1 4 . 5 . 1 5 . 2 Terminals 25 | . 3 3 2 3 5 3 . . . . 4 . . . . 2 Fabricators . | . . . . . . . . . . . . . . . . . Repair Stations . | . . . . . . . . . . . . . . . . . Recycling Units 5 | . . 1 . . 1 3 . . . . . . . . . . Scanalyzers . | . . . . . . . . . . . . . . . . . Garrison Access 1 | . . . . . . . . . . . 1 . . . . . Total Hacks 108 | . 5 5 5 8 13 8 . 1 27 . 13 . 1 18 . 4 Successful 81 | . 3 4 4 5 10 2 . 1 27 . 6 . 1 18 . . Failed 27 | . 2 1 1 3 3 6 . . . . 7 . . . . 4 Catastrophic 3 | . . 1 . . . 1 . . . . . . . . . 1 Database Lockouts . | . . . . . . . . . . . . . . . . . Manual 10 | . . 1 1 1 . 3 . . . . 2 . . . . 2 Terminals 52 | . 5 4 5 8 12 3 . . . . 11 . . . . 4 Fabricators . | . . . . . . . . . . . . . . . . . Repair Stations . | . . . . . . . . . . . . . . . . . Recycling Units 7 | . . 1 . . 1 5 . . . . . . . . . . Scanalyzers . | . . . . . . . . . . . . . . . . . Garrison Access 2 | . . . . . . . . . . . 2 . . . . . Terminal Hacks 77 | . 3 3 4 5 9 . . 1 27 . 6 . 1 18 . . Record 18 | . . . . . . . . . 11 . 1 . . 6 . . Part Schematic 16 | . . . . . 2 . . . 10 . . . . 4 . . Robot Schematic 3 | . . . . . . . . . 3 . . . . . . . Robot Analysis 6 | . 1 . . 1 . . . . . . . . . 4 . . Prototype ID Bank 10 | . 1 1 . . 1 . . . 3 . . . . 4 . . Open Door 2 | . . . . . . . . 1 . . . . 1 . . . Level Access Points 1 | . . 1 . . . . . . . . . . . . . . Branch Access Points 4 | . . . 1 1 1 . . . . . 1 . . . . . Terminal Index 2 | . . . . 1 . . . . . . 1 . . . . . Alert Level 2 | . . . . . 2 . . . . . . . . . . . Unreport Threat 2 | . . . 1 1 . . . . . . . . . . . . Locate Traps 3 | . 1 . 1 1 . . . . . . . . . . . . Disarm Traps 1 | . . . . . . . . . . . 1 . . . . . Surveillance Status 1 | . . . . . . . . . . . 1 . . . . . Transport Status 1 | . . 1 . . . . . . . . . . . . . . Hauler Manifests 1 | . . . . . 1 . . . . . . . . . . . Registered Components 1 | . . . . . . . . . . . 1 . . . . . Zone Layout 3 | . . . 1 . 2 . . . . . . . . . . . Fabricator Hacks . | . . . . . . . . . . . . . . . . . Repair Station Hacks . | . . . . . . . . . . . . . . . . . Recycling Unit Hacks 2 | . . . . . 1 1 . . . . . . . . . . Report Inventory 1 | . . . . . 1 . . . . . . . . . . . Retrieve Matter 1 | . . . . . . 1 . . . . . . . . . . Scanalyzer . | . . . . . . . . . . . . . . . . . Garrison Access Hacks . | . . . . . . . . . . . . . . . . . Unauthorized Hacks 2 | . . 1 . . . 1 . . . . . . . . . . Terminals . | . . . . . . . . . . . . . . . . . Fabricators . | . . . . . . . . . . . . . . . . . Repair Stations . | . . . . . . . . . . . . . . . . . Recycling Units 2 | . . 1 . . . 1 . . . . . . . . . . Tunnel 2 | . . 1 . . . 1 . . . . . . . . . . Scanalyzers . | . . . . . . . . . . . . . . . . . Garrison Access . | . . . . . . . . . . . . . . . . . Data Cores Recovered . | . . . . . . . . . . . . . . . . . Used . | . . . . . . . . . . . . . . . . . Hacking Detections 25 | . 3 2 2 2 5 4 . . . . 5 . . . . 2 Full Trace Events 3 | . . . . 1 1 . . . . . . . . . . 1 Feedback Events . | . . . . . . . . . . . . . . . . . Feedback Blocked . | . . . . . . . . . . . . . . . . . Robot Schematics Acquired 3 | . . . . . . . . . 3 . . . . . . . Robots Built . | . . . . . . . . . . . . . . . . . Authchips . | . . . . . . . . . . . . . . . . . Time . | . . . . . . . . . . . . . . . . . Total Robot Build Rating . | . . . . . . . . . . . . . . . . . Part Schematics Acquired 16 | . . . . . 2 . . . 10 . . . . 4 . . Parts Built . | . . . . . . . . . . . . . . . . . Authchips . | . . . . . . . . . . . . . . . . . Time . | . . . . . . . . . . . . . . . . . Total Part Build Rating . | . . . . . . . . . . . . . . . . . Parts Repaired . | . . . . . . . . . . . . . . . . . Time . | . . . . . . . . . . . . . . . . . Parts Recycled . | . . . . . . . . . . . . . . . . . Recycled Matter . | . . . . . . . . . . . . . . . . . Retrieved Matter . | . . . . . . . . . . . . . . . . . Retrieved Components . | . . . . . . . . . . . . . . . . . Parts Scanalyzed . | . . . . . . . . . . . . . . . . . Part Schematics Acquired . | . . . . . . . . . . . . . . . . . Parts Damaged . | . . . . . . . . . . . . . . . . . Bothacking | -11 -10 -9 -8 -8 -8 -6 -6 -6 -6 -5 -5 -5 -5 -5 -4 -4 ------------ Run | Jun Mat Mat Mat Sto Rec Fac Low Low Dat Pro Fac Upp Upp Zhi Pro Fac Used RIF Installer . | . . . . . . . . . . . . . . . . . Robots Hacked . | . . . . . . . . . . . . . . . . . Non-combat . | . . . . . . . . . . . . . . . . . Combat . | . . . . . . . . . . . . . . . . . Robot Hacks Applied . | . . . . . . . . . . . . . . . . . Relay Couplers Released 3 | . . . . . . 3 . . . . . . . . . . Programmers 3 | . . . . . . 3 . . . . . . . . . . Fabnet Peak Effective % . | . . . . . . . . . . . . . . . . . Robots Rewired 10 | . . . . 1 6 . . 2 . . . . . . 1 . Allies Hacked . | . . . . . . . . . . . . . . . . . Hacks Repelled . | . . . . . . . . . . . . . . . . . Allies | -11 -10 -9 -8 -8 -8 -6 -6 -6 -6 -5 -5 -5 -5 -5 -4 -4 -------- Run | Jun Mat Mat Mat Sto Rec Fac Low Low Dat Pro Fac Upp Upp Zhi Pro Fac Total Allies 21 | . . . . 10 6 . . 3 . 1 . . . . 1 . Largest Group 14 | . . . . 10 14 14 . 2 2 2 1 . . . 1 . Highest-Rated Group 243 | . . . . 173 243 243 . 146 58 96 96 . . . 44 . Highest-Rated Ally 146 | . . . . 29 34 34 . 146 29 96 96 . . . 44 . Total Orders . | . . . . . . . . . . . . . . . . . Ally Attacks 107 | . . . . 6 13 42 . 9 . 32 5 . . . . . Total Damage 3209 | . . . . 80 193 1154 . 937 . 656 189 . . . . . Kills 24 | . . . . 2 3 5 . 8 . 6 . . . . . . Allies Corrupted . | . . . . . . . . . . . . . . . . . Allies Melted . | . . . . . . . . . . . . . . . . . Intel | -11 -10 -9 -8 -8 -8 -6 -6 -6 -6 -5 -5 -5 -5 -5 -4 -4 ------- Run | Jun Mat Mat Mat Sto Rec Fac Low Low Dat Pro Fac Upp Upp Zhi Pro Fac Robot Analysis Total 6 | . 1 . . 1 . . . . . . . . . 4 . . Derelict Logs Recovered 6 | . . . . . . . 2 1 . 1 . 1 . . 1 . Drone Launches . | . . . . . . . . . . . . . . . . . Drone Recoveries . | . . . . . . . . . . . . . . . . . Exploration | -11 -10 -9 -8 -8 -8 -6 -6 -6 -6 -5 -5 -5 -5 -5 -4 -4 ------------- Run | Jun Mat Mat Mat Sto Rec Fac Low Low Dat Pro Fac Upp Upp Zhi Pro Fac Turns Passed 9824 | 41 117 279 788 223 535 2119 445 1323 127 518 955 108 190 138 603 1315 Spaces Moved 6354 | 26 90 138 464 128 413 1180 327 559 80 335 684 163 302 152 428 885 Core 97 | 10 . . . . . . . . . . . . . . . 87 Treads 1399 | . . 107 68 . . 1033 . 100 80 11 . . . . . . Legs 3245 | . . . 396 128 412 23 327 459 . . 491 . . 60 428 521 Wheels 270 | 16 90 31 . . . 77 . . . . 36 . . . . 20 Hover 1085 | . . . . . . 47 . . . 324 157 163 302 92 . . Flight 258 | . . . . . 1 . . . . . . . . . . 257 Fastest Speed 32 | 50 90 90 110 120 120 102 120 120 160 72 46 46 46 50 120 32 Average Speed 113 | 117 90 132 121 120 120 137 120 166 160 76 102 46 46 78 120 90 Slowest Speed 315 | 250 90 145 145 120 315 240 120 240 160 240 180 46 50 136 120 260 Overloaded Moves . | . . . . . . . . . . . . . . . . . Propulsion Burnouts . | . . . . . . . . . . . . . . . . . Robots Hopped 7 | . . . . . . . . . . . . . . . . 7 Cave-ins Triggered 1 | . . . . . . . . . . . . . 1 . . . Exploration Rate (%) 41 | 3 20 15 49 30 67 28 53 54 72 55 22 46 45 58 63 22 Regions Visited 16 Branch Regions 10 Pre-discovered Areas 7 | . . 1 . . . 1 . . 1 1 . . . 3 . . Known Exits Taken 13 | . . 1 1 1 . 1 1 1 1 1 1 1 1 1 1 . Unknown Exits Taken 3 | 1 1 . . . 1 . . . . . . . . . . . Scrap Searched 12 | . . . . . . . . 7 . 3 . 1 . . 1 . Spaces Dug 33 | . . . . . . . . . . . . 5 16 . 12 . Terrain Destroyed 154 | . . . 19 . . 36 1 11 . . 5 7 18 . 20 37 Melee . | . . . . . . . . . . . . . . . . . Projectile 92 | . . . 1 . . 1 1 2 . . 5 7 18 . 20 37 AOE 62 | . . . 18 . . 35 . 9 . . . . . . . . Terrain Rammed . | . . . . . . . . . . . . . . . . . Walls Destroyed . | . . . . . . . . . . . . . . . . . Machines Disabled . | . . . . . . . . . . . . . . . . . Actions | -11 -10 -9 -8 -8 -8 -6 -6 -6 -6 -5 -5 -5 -5 -5 -4 -4 --------- Run | Jun Mat Mat Mat Sto Rec Fac Low Low Dat Pro Fac Upp Upp Zhi Pro Fac Total 8115 | 33 103 180 613 174 453 1457 354 853 79 596 859 187 340 168 475 1191 Wait 837 | . 2 1 53 7 8 106 15 193 . 226 84 16 24 . . 102 Move 6325 | 25 89 137 463 127 412 1179 326 558 79 334 683 162 300 151 427 873 Hop 5 | . . . . . . . . . . . . . . . . 5 Pick Up 69 | . . 3 9 2 2 11 . 12 . 6 11 . . . . 13 Fast Attach 113 | 7 1 5 19 6 2 10 . 7 . 1 14 . . 11 2 28 Attach 77 | . . . 4 3 1 12 . 8 . 10 11 1 1 . 5 21 Detach 28 | . . . 3 . 4 4 . 3 . 7 4 . 2 1 . . Swap 35 | . . . 9 1 . 2 . 4 . 1 5 . . . 1 12 Drop 85 | 1 . 3 16 10 3 17 . 6 . 8 9 . . 5 1 6 Fire 503 | . 11 31 37 15 . 115 13 56 . 3 38 8 12 . 36 128 Melee . | . . . . . . . . . . . . . . . . . Ram 1 | . . . . . . 1 . . . . . . . . . . Kick 5 | . . . . . . . . . . . . . . . 2 3 Crush . | . . . . . . . . . . . . . . . . . Escape Stasis 1 | . . . . . . . . . . . . . 1 . . . Rewire 31 | . . . . 3 21 . . 6 . . . . . . 1 . Trap . | . . . . . . . . . . . . . . . . . Miscellaneous . | . . . . . . . . . . . . . . . . . Route ------- -11/Junkyard -10/Materials -9/Materials (discovered 3 exits: *Mat x3) -8/Materials -8/Storage -8/Recycling -6/Factory -6/Lower Caves -6/Lower Caves (discovered 2 exits: *Dat / *Fac) -6/Data Miner -5/Proximity Caves -5/Factory (discovered 3 exits: Fac / *Upp x2) -5/Upper Caves -5/Upper Caves (discovered 2 exits: *Fac / *Zhi) -5/Zhirov -4/Proximity Caves -4/Factory (discovered 2 exits: *Res x2) History --------- Turn | Location | Event 20 | -11/Junkyard | Discovered new exit (range 16) 42 | -11/Junkyard | Entered Materials 125 | -10/Materials | Discovered new exit (range 16) 159 | -10/Materials | Entered another Materials area 159 | -9/Materials | Evolved 2 slots: Propulsion x1, Utility x1 296 | -9/Materials | Identified exit to Materials 310 | -9/Materials | Build established: Mutant 438 | -9/Materials | Entered another Materials area 438 | -8/Materials | Evolved 2 slots: Utility x2 617 | -8/Materials | Lost 3 parts (1n2w) 784 | -8/Materials | Identified exit to Storage 1146 | -8/Materials | Build established: Hacker-Mutant 1226 | -8/Materials | Entered Storage 1412 | -8/Storage | Identified exit to Recycling 1432 | -8/Storage | Assisted by bots powering up and referring to "LRC-V3" 1437 | -8/Storage | Used back door to open Recycling access 1449 | -8/Storage | Entered Recycling 1449 | -8/Recycling | Accompanied by 9 allies 1453 | -8/Recycling | Found Scrap Engine 1740 | -8/Recycling | Build established: Commander-Mutant 1914 | -8/Recycling | Discovered new exit (range 16) 1984 | -8/Recycling | Entered Factory 1984 | -6/Factory | Accompanied by 14 allies 1984 | -6/Factory | Evolved 4 slots: Power x1, Propulsion x1, Utility x2 2419 | -6/Factory | Build established: Hacker-Construct 3684 | -6/Factory | Build established: Hacker-Mutant 3972 | -6/Factory | Destroyed 7 combat bots 4039 | -6/Factory | Core integrity fell below 50% 4096 | -6/Factory | Discovered new exit (range 5) 4103 | -6/Factory | Identified exit to Lower Caves 4103 | -6/Factory | Entered Lower Caves 4115 | -6/Lower Caves | Encountered a Warlord checkpoint 4370 | -6/Lower Caves | Build established: Scavenger-Skirmisher 4473 | -6/Lower Caves | Learned Factory garrison access intel 4478 | -6/Lower Caves | Learned 4 Factory zone layouts 4534 | -6/Lower Caves | Discovered new exit (range 8) 4546 | -6/Lower Caves | Identified exit to Lower Caves 4548 | -6/Lower Caves | Entered another Lower Caves area 4732 | -6/Lower Caves | Learned 8 Factory zone layouts 4741 | -6/Lower Caves | Attracted the attention of an 0b10 checkpoint 4863 | -6/Lower Caves | Build established: Hacker-Skirmisher 4884 | -6/Lower Caves | Encountered a Warlord checkpoint 5540 | -6/Lower Caves | Attracted the attention of an 0b10 outpost 5662 | -6/Lower Caves | Lost 5 parts (1p3n1w) 5682 | -6/Lower Caves | Discovered new exit (range 8) 5722 | -6/Lower Caves | NK-0LA showed up to help 5725 | -6/Lower Caves | Identified exit to Data Miner 5738 | -6/Lower Caves | Lost 3 parts (1p1n1w) 5744 | -6/Lower Caves | Core integrity fell below 20% 5746 | -6/Lower Caves | NK-0LA revealed a hidden path 5756 | -6/Lower Caves | Identified exit to Factory 5839 | -6/Lower Caves | System corruption reached 10% 5859 | -6/Lower Caves | Build established: Hacker-Mutant 5871 | -6/Lower Caves | Entered Data Miner 5871 | -6/Data Miner | Accompanied by 2 allies 5871 | -6/Data Miner | Discovered new exit (range 6) 5895 | -6/Data Miner | Met Data Miner 5932 | -6/Data Miner | Learned location of Section 7 (-3) 5932 | -6/Data Miner | Acquired the access code to Warlord's prototype stash 5961 | -6/Data Miner | Received God Mode back door access code from Data Miner 5996 | -6/Data Miner | Identified exit to Proximity Caves 5998 | -6/Data Miner | Entered Proximity Caves 5998 | -5/Proximity Caves | Accompanied by 2 allies 6000 | -5/Proximity Caves | Spotter reported a threat 6011 | -5/Proximity Caves | Spotted B-75 Beast 6046 | -5/Proximity Caves | Escorted by Enhanced Grunt 6512 | -5/Proximity Caves | Discovered exit to Factory (range 4) 6516 | -5/Proximity Caves | Entered Factory 6516 | -5/Factory | Accompanied by 1 ally 6516 | -5/Factory | Evolved 2 slots: Propulsion x1, Utility x1 6517 | -5/Factory | Identified exit to Factory 6518 | -5/Factory | Loaded intel: 4 garrison access locations 6547 | -5/Factory | Lost 3 parts (3n) 6587 | -5/Factory | Found Prototype Device 6593 | -5/Factory | Identified Exp. Thermal Shield 6639 | -5/Factory | Identified exit to Upper Caves 6924 | -5/Factory | Garrison activated, responded to threat 7166 | -5/Factory | Build established: Scavenger-Skirmisher 7471 | -5/Factory | Entered Upper Caves 7478 | -5/Upper Caves | Encountered a Warlord checkpoint 7478 | -5/Upper Caves | Learned location of 1 exit from Factory 7555 | -5/Upper Caves | Spotted B-75 Beast 7572 | -5/Upper Caves | Discovered new exit (range 15) 7579 | -5/Upper Caves | Identified exit to Upper Caves 7579 | -5/Upper Caves | Entered another Upper Caves area 7584 | -5/Upper Caves | Discovered exit to Factory (range 14) 7692 | -5/Upper Caves | Build established: Hacker-Scout 7749 | -5/Upper Caves | Crushed by falling debris 7763 | -5/Upper Caves | Discovered new exit (range 12) 7768 | -5/Upper Caves | Identified exit to Zhirov 7769 | -5/Upper Caves | Entered Zhirov 7769 | -5/Zhirov | Discovered new exit (range 3) 7779 | -5/Zhirov | Met Zhirov 7786 | -5/Zhirov | Lost 4 parts (1p1n2u) 7790 | -5/Zhirov | Learned location of Quarantine (-3) 7790 | -5/Zhirov | Learned location of Testing (-2) 7790 | -5/Zhirov | Learned location of Command (-1) 7797 | -5/Zhirov | Zhirov requested help retrieving the SGEMP Prototype 7807 | -5/Zhirov | Found Alien Artifact 7807 | -5/Zhirov | Identified Integrated Dissipator 7807 | -5/Zhirov | Installed Integrated Dissipator, increased core heat dissipation (+20) 7906 | -5/Zhirov | Identified exit to Proximity Caves 7907 | -5/Zhirov | Entered Proximity Caves 7909 | -4/Proximity Caves | Spotter reported a threat 8075 | -4/Proximity Caves | Spotter reported a threat 8113 | -4/Proximity Caves | Build established: Hacker-Mutant 8113 | -4/Proximity Caves | Spotter reported a threat 8114 | -4/Proximity Caves | Attracted the attention of an 0b10 outpost 8166 | -4/Proximity Caves | Spotter reported a threat 8182 | -4/Proximity Caves | Spotter reported a threat 8280 | -4/Proximity Caves | System corruption reached 10% 8300 | -4/Proximity Caves | Lost 3 parts (1n1u1w) 8363 | -4/Proximity Caves | Spotter reported a threat 8473 | -4/Proximity Caves | Learned location of 2 exits from Research 8504 | -4/Proximity Caves | Discovered exit to Factory (range 6) 8510 | -4/Proximity Caves | Entered Factory 8510 | -4/Factory | Evolved 2 slots: Utility x2 8511 | -4/Factory | Identified exit to Research 8651 | -4/Factory | Incoming investigation squad redirected 8760 | -4/Factory | Search patrols dispatched 8849 | -4/Factory | Destroyed 10 combat bots 9039 | -4/Factory | Search patrols dispatched 9049 | -4/Factory | Build established: Scavenger-Skirmisher 9158 | -4/Factory | Destroyed 9 combat bots 9167 | -4/Factory | Lost 5 parts (1p4u) 9289 | -4/Factory | First assault squad dispatched 9306 | -4/Factory | Destroyed 12 combat bots 9314 | -4/Factory | Lost 4 parts (2p2n) 9364 | -4/Factory | Lost 4 parts (3u1w) 9378 | -4/Factory | Discovered exit to Research (range 19) 9458 | -4/Factory | System corruption reached 10% 9500 | -4/Factory | Destroyed 8 combat bots 9595 | -4/Factory | Lost 22 parts (4p8n4u6w) 9615 | -4/Factory | Build established: Scavenger-Mutant 9617 | -4/Factory | Released all parts (8) 9648 | -4/Factory | Lost 3 parts (1n1u1w) 9740 | -4/Factory | Core integrity fell below 50% 9792 | -4/Factory | Released all parts (3) 9816 | -4/Factory | Core integrity fell below 20% 9825 | -4/Factory | Destroyed by G-67 Veteran with Field Laser Last Messages --------------- 09732_ Cld. Gravmag System blown off. 09732_ E-15 Imp destroyed. 09741_ Acquired Lgt. Antimatter Reactor. 09746_ Dropped Lgt. Antimatter Reactor. 09747_ Acquired VTOL Module. 09748_ ,CMNEGC9KCD= VH>% >L#UZ1N#AV 09748_ Critical hit (Burn: +37). 09750_ Acquired VTOL Module. 09760_ ALERT: Rogue bot located, Programmers report to Factory Zone 9I. 09765_ XR=73QZ#QRTGGBQNN,G/ MVV |,B 09781_ System corrupted: Heat flow error (+243). 09788_ Manufacturing Mainframe disabled. 09791_ VTOL Module destroyed. 09792_ Released VTOL Module. 09792_ Released Imp. Energy Well. 09792_ Released Imp. Cryofiber Web. 09803_ ZWKOKC8&AG=ELJ6Z